{"text_format":"1","workbook":"xlsx","n_sheets":3,"sheets":["DATOS","FICHA EMPRESA","FICHA TRABAJADOR"],"not_rendered":{"charts":0,"images":2,"macros":1,"external_links":0,"defined_names":0,"comments":0,"pivot_tables":0},"unopened":[],"bounds":{"document_bytes":16777216,"sheet_cells":100000,"rows_first":2000,"rows_last":500,"rows_between":2000,"halvings":0,"cell_chars":16384,"cell_head_chars":4096},"cells_cut":0,"cells_raw":0,"read":"whole","date_system":"1900"}

{"sheet":"DATOS","index":0,"n_rows":107,"n_cols":18,"rows_kept":107,"cut":false,"hidden":false,"merged":[[34,1,34,4],[35,1,35,4],[23,1,23,4],[19,3,20,4],[26,1,26,4],[25,1,25,4],[31,1,31,4],[29,1,29,4],[30,1,30,4],[32,1,32,4],[24,1,24,4],[4,5,5,5],[7,1,8,2],[10,1,11,2],[1,1,2,4],[4,6,5,6],[4,1,5,2],[4,3,5,4],[7,3,8,4],[13,1,14,2],[19,1,20,2],[16,3,17,4],[16,1,17,2],[10,3,11,4],[13,3,14,4]]}
[]
[null,"FICHAS DE EVALUACIÓN DE EXPOSICIÓN A RUIDO"]
[]
[]
[null,"FECHA:",null,"2016-11-14"]
[]
[]
[null,"EMPRESA:",null,"MECANIZADOS EL TUERCAS, S.L."]
[]
[]
[null,"CENTRO DE TRABAJO:",null,"C/ EL MENDRUGO 33 · MADRID"]
[]
[]
[null,"PUESTO DE TRABAJO:",null,"OPERARIO DE PINTURA"]
[]
[]
[null,"TRABAJADOR:",null,"EULALIO SEBASTIAN CORDERO VALCEITE"]
[]
[]
[null,"LUGAR DE EMISIÓN:",null,"MADRID"]
[]
[]
[]
[null,"NIVEL DIARIO EQUIVALENTE (dBA)"]
[null,110]
[null,"NIVEL DIARIO EQUIVALENTE (dBA) teniendo en cuenta la atenuación de los protectores auditivos individuales utilizados"]
[null,90]
[]
[]
[null,"NIVEL PICO (dBC)"]
[null,128]
[null,"NIVEL PICO (dBC) teniendo en cuenta la atenuación de los protectores auditivos individuales utilizados"]
[null,100]
[]
[null,"MODELO DE PROTECTORES UTILIZADOS"]
[null,"TAPONES 3M - 1100"]
[]
[]
[]
[]
[]
[null,"L'>87","► Si a pesar de las medidas adoptadas se comprobasen exposiciones por encima de los valores límite de exposición, se deberá (R.D. 286/2006; art. 8º, 2):\n\n- tomar inmediatamente medidas para reducir la exposición por debajo de los valores límite de exposición;\n\n- determinar las razones de la sobreexposición;\n\n- corregir las medidas de prevención y protección, a fin de evitar que vuelva a producirse una reincidencia;\n\n- informar a los delegados de prevención de tales circunstancias."]
[null,"Lpk>140"]
[]
[null,null,null,null,null,null,null,null,null,null,null,"L=80",{"$f":"IF(#REF!=80,1,0)","v":{"$error":"#REF!"}}]
[null,null,null,null,null,null,null,null,null,null,null,"L<80",{"$f":"IF(#REF!<80,1,0)","v":{"$error":"#REF!"}},{"$f":"M45+M46","v":{"$error":"#REF!"}},null,{"$f":"N46","v":{"$error":"#REF!"}},null,{"$f":"IF(OR(P54=1,P68=1),C64,R47)","v":{"$error":"#REF!"}}]
[null,null,null,null,null,null,null,null,null,null,null,null,null,null,null,null,null,{"$f":"IF(OR(P51=1,P65=1),C85,R48)","v":{"$error":"#REF!"}}]
[null,null,null,null,null,null,null,null,null,null,null,null,null,null,null,null,null,{"$f":"IF(OR(P46=1,P68=1),C85,R49)","v":{"$error":"#REF!"}}]
[null,null,null,null,null,null,null,null,null,null,null,"L=85",{"$f":"IF(#REF!=85,1,0)","v":{"$error":"#REF!"}},{"$f":"M49","v":{"$error":"#REF!"}}]
[null,null,null,null,null,null,null,null,null,null,null,"L>80",{"$f":"IF(#REF!>80,1,0)","v":{"$error":"#REF!"}}]
[null,null,null,null,null,null,null,null,null,null,null,"L<85",{"$f":"IF(#REF!<85,1,0)","v":{"$error":"#REF!"}},{"$f":"M50+M51","v":{"$error":"#REF!"}},null,{"$f":"IF(OR(N51=2,N49=1),1,0)","v":{"$error":"#REF!"}}]
[]
[]
[null,null,null,null,null,null,null,null,null,null,null,"L>85",{"$f":"IF(#REF!>85,1,0)","v":{"$error":"#REF!"}},{"$f":"M54","v":{"$error":"#REF!"}},null,{"$f":"IF(OR(N54=1,N53=1),1,0)","v":{"$error":"#REF!"}}]
[]
[]
[]
[]
[null,null,null,null,null,null,null,null,null,null,null,"Lpk=135",{"$f":"IF(#REF!=135,1,0)","v":{"$error":"#REF!"}}]
[null,null,null,null,null,null,null,null,null,null,null,"Lpk<135",{"$f":"IF(#REF!<135,1,0)","v":{"$error":"#REF!"}},{"$f":"M59+M60","v":{"$error":"#REF!"}},null,{"$f":"N60","v":{"$error":"#REF!"}}]
[]
[]
[null,null,null,null,null,null,null,null,null,null,null,"Lpk=137",{"$f":"IF(#REF!=137,1,0)","v":{"$error":"#REF!"}},{"$f":"M63","v":{"$error":"#REF!"}}]
[null,"L>85","► Deberá llevarse a cabo una evaluación periódica, como mínimo, anualmente (R.D. 286/2006; art. 6º, 4), y si se producen modificaciones que supongan una variación significativa de la exposición de los trabajadores al ruido, y en cualquier caso, la evaluación deberá revisarse cuando se detecten daños para la salud de los trabajadores (R.D. 286/2006; art. 11º, 4b.1º) o se aprecie que las actividades de prevención pueden ser inadecuadas o insuficientes (R.D. 39/1997; art. 6º, 1).\n\n► Se deberá establecer y ejecutar un programa de medidas técnicas y/o de organización destinadas a reducir la exposición al ruido (R.D. 286/2006; art. 4º, 2).\n\n► Los lugares de trabajo de exposición mayor a 85 dB(A) de nivel equivalente deberán ser señalizados apropiadamente, y cuando sea viable desde el punto de vista técnico deberán delimitarse y limitar el acceso a ellos (R.D. 286/2006; art. 4º, 3).\n\n► Los trabajadores tendrán derecho a un control médico periódico de su función auditiva, como mínimo, cada tres años (R.D. 286/2006; art. 11º, 2), el cual tendrá carácter obligatorio para el trabajador (LPRL 31/95; art. 22º, 1 y R.D. 286/2006; art. 11º, 1).\n\n► Deberán ponerse a disposición de los trabajadores protectores auditivos individuales apropiados \n(R.D. 286/2006; art. 7º, 1), siendo su uso obligatorio en todas aquellas áreas señalizadas y en las \noperaciones de exposición a más de 85 dB(A) de nivel equivalente (R.D. 773/97; art. 4º y anexo 3, 4).\n\n► Se deberá proporcionar a cada trabajador una información y una formación adecuadas relativas a los \nriesgos derivados de la exposición al ruido, en particular sobre (R.D. 286/2006; art. 9º):\n   - la naturaleza de tales riesgos;\n   - las medidas tomadas con objeto de eliminar o reducir al mínimo los riesgos derivados del ruido, \n     incluidas las circunstancias en que aquéllas son aplicables;\n   - los valores límite de exposición y los valores de exposición que dan lugar a una acción;\n   - los resultados de las evaluaciones y mediciones del ruido efectuadas, junto con una explicación de su \n     significado y riesgos potenciales;\n   - el uso y mantenimiento correctos de los protectores auditivos, así como su capacidad de atenuación;\n   - la conveniencia y la forma de detectar e informar sobre indicios de lesión auditiva;\n   - las circunstancias en las que los trabajadores tienen derecho a una vigilancia de la salud, y la finalidad \n     de esta vigilancia de la salud, así como los resultados del control médico de su función auditiva;\n   - las prácticas de trabajo seguras, con el fin de reducir al mínimo la exposición al ruido.",null,null,null,null,null,null,null,null,"Lpk>135",{"$f":"IF(#REF!>135,1,0)","v":{"$error":"#REF!"}}]
[null,"Lpk>137",null,null,null,null,null,null,null,null,null,"Lpk<137",{"$f":"IF(#REF!<137,1,0)","v":{"$error":"#REF!"}},{"$f":"M64+M65","v":{"$error":"#REF!"}},null,{"$f":"IF(OR(N65=2,N63=1),1,0)","v":{"$error":"#REF!"}}]
[]
[]
[null,null,null,null,null,null,null,null,null,null,null,"Lpk>137",{"$f":"IF(#REF!>137,1,0)","v":{"$error":"#REF!"}},{"$f":"M68","v":{"$error":"#REF!"}},null,{"$f":"IF(OR(N68=1,N67=1),1,0)","v":{"$error":"#REF!"}}]
[]
[]
[]
[]
[]
[]
[]
[]
[]
[]
[]
[]
[]
[]
[]
[]
[null,"85>L>80","► Deberá llevarse a cabo una evaluación periódica, como mínimo, cada tres años (R.D. 286/2006; art. 6º, 4), y si se producen modificaciones que supongan una variación significativa de la exposición de los trabajadores al ruido, y en cualquier caso, la evaluación deberá revisarse cuando se detecten daños para la salud de los trabajadores (R.D. 286/2006; art. 11º, 4b.1º) o se aprecie que las actividades de prevención pueden ser inadecuadas o insuficientes (R.D. 39/1997; art. 6º, 1).\n\n► Los trabajadores tendrán derecho a un control médico periódico de su función auditiva, como mínimo, cada cinco años (R.D. 286/2006; art. 11º, 2), el cual tendrá carácter obligatorio para el trabajador (LPRL 31/95; art. 22º, 1 y R.D. 286/2006; art. 11º, 1).\n\n► Deberán ponerse a disposición de los trabajadores protectores auditivos individuales apropiados y correctamente ajustados (R.D. 286/2006; art. 7º, 1), siendo su uso obligatorio en todas aquellas áreas señalizadas (R.D. 286/2006; art. 4º, 3) y en las operaciones de exposición a más de 85 dB(A) de nivel equivalente (R.D. 773/97; art. 4º y anexo 3, 4).\n\n► Se deberá proporcionar a cada trabajador una información y una formación adecuadas realativas a los riesgos derivados de la exposición al ruido, en particular sobre (R.D. 286/2006; art. 9º):\n   - la naturaleza de tales riesgos;\n   - las medidas tomadas con objeto de eliminar o reducir al mínimo los riesgos derivados del ruido, \n     incluidas las circunstancias en que aquéllas son aplicables;\n   - los valores límite de exposición y los valores de exposición que dan lugar a una acción;\n   - los resultados de las evaluaciones y mediciones del ruido efectuadas, junto con una explicación de su \n     significado y riesgos potenciales;\n   - el uso y mantenimiento correctos de los protectores auditivos, así como su capacidad de atenuación;\n   - la conveniencia y la forma de detectar e informar sobre indicios de lesión auditiva;\n   - las circunstancias en las que los trabajadores tienen derecho a una vigilancia de la salud, y la finalidad \n     de esta vigilancia de la salud, así como los resultados del control médico de su función auditiva;\n   - las prácticas de trabajo seguras, con el fin de reducir al mínimo la exposición al ruido."]
[null,"135<Lpk<137"]
[]
[]
[]
[]
[]
[]
[]
[]
[]
[]
[]
[]
[]
[]
[]
[]
[]
[]
[]
[null,"L<80","► Exento de evaluación periódica (R.D. 286/2006; art. 6º). La evaluación deberá revisarse cuando se detecten daños para la salud de los trabajadores (R.D. 286/2006; art. 11º, 4b.1º) o se aprecie que las actividades de prevención pueden ser inadecuadas o insuficientes (R.D. 39/1997; art. 6º, 1), y en todo caso, si se producen modificaciones que supongan una variación significativa de la exposición de los trabajadores al ruido.\n\n► Exento de control médico periódico de la función auditiva (R.D. 286/2006; art. 11º).\n\n► Exento de empleo de protectores auditivos en el puesto, siendo no obstante su uso obligatorio en todas aquellas áreas señalizadas (R.D. 485/97; art. 4º, 1a) de exposición a más de 85 dB(A) de nivel equivalente (R.D. 286/2006; art. 7º, 1b).\n\n► En su caso, se deberá proporcionar a cada trabajador una información adecuada sobre la correcta utilización, cuidado y mantenimiento de los protectores auditivos."]
[null,"Lpk<135"]

{"sheet":"FICHA EMPRESA","index":1,"n_rows":69,"n_cols":8,"rows_kept":69,"cut":false,"hidden":false,"merged":[[12,1,13,6],[12,7,13,7],[14,1,14,6],[25,1,60,7],[50,0,68,0],[64,1,64,3],[64,5,64,7],[15,1,15,6],[16,1,16,4],[16,5,16,7],[18,1,18,6],[20,1,20,6],[23,1,23,7],[7,1,7,2],[7,3,7,7],[8,1,8,2],[8,3,8,4],[10,1,10,7],[1,2,1,7],[3,1,3,2],[3,3,3,7],[5,1,5,2],[5,3,5,7]]}
[]
[null,null,"FICHA DE EVALUACIÓN   -   AGENTES FÍSICOS:  RUIDO"]
[]
[null,"Empresa:",null,{"$f":"DATOS!D8","v":"MECANIZADOS EL TUERCAS, S.L."}]
[]
[null,"Centro de trabajo:",null,{"$f":"DATOS!D11","v":"C/ EL MENDRUGO 33 · MADRID"}]
[]
[null,"PUESTO ANALIZADO:",null,{"$f":"DATOS!D14","v":"OPERARIO DE PINTURA"}]
[null,"Fecha de la evaluación:",null,{"$f":"DATOS!D5","v":"2016-11-14"}]
[]
[null,"EVALUACIÓN DE LOS RESULTADOS SEGÚN R.D. 286/2006:"]
[]
[null,"Se superan los valores límite de exposición (Leq,d=87dBA y Lpico=140dBC teniendo en cuenta la atenuación de los protectores auditivos individuales utilizados):",null,null,null,null,null,{"$f":"IF(OR(DATOS!B27>87,DATOS!B33>140),\"SI\",\"NO\")","v":"SI"}]
[]
[null,"Nivel de exposición diario equivalente (dB(A)) con protectores auditivos:",null,null,null,null,null,{"$f":"DATOS!B27","v":90}]
[null,"Nivel de pico (dB(C)) con protectores auditivos:    ",null,null,null,null,null,{"$f":"DATOS!B33","v":100}]
[null,"Euqipos de Protección Individual Auditivos utilizados:",null,null,null,{"$f":"DATOS!B36","v":"TAPONES 3M - 1100"}]
[]
[null,"Nivel de exposición diario equivalente (dB(A)):",null,null,null,null,null,{"$f":"DATOS!B25","v":110}]
[]
[null,"Nivel de pico (dB(C)):    ",null,null,null,null,null,{"$f":"DATOS!B31","v":128}]
[]
[]
[null,"Medidas de prevención y protección:"]
[]
[null,{"$f":"IF(H13=\"SI\",DATOS!C42,IF(AND(H19<80,H21<135),DATOS!C106,IF(OR(H19=85,H19>85,H21=137,H21>137),DATOS!C64,IF(OR(AND(H19<85,H19=80,H19>80),OR(H21>135,H21=135,H21<137)),DATOS!C85,\" \"))))","v":"► Si a pesar de las medidas adoptadas se comprobasen exposiciones por encima de los valores límite de exposición, se deberá (R.D. 286/2006; art. 8º, 2):\n\n- tomar inmediatamente medidas para reducir la exposición por debajo de los valores límite de exposición;\n\n- determinar las razones de la sobreexposición;\n\n- corregir las medidas de prevención y protección, a fin de evitar que vuelva a producirse una reincidencia;\n\n- informar a los delegados de prevención de tales circunstancias."}]
[]
[]
[]
[]
[]
[]
[]
[]
[]
[]
[]
[]
[]
[]
[]
[]
[]
[]
[]
[]
[]
[]
[]
[]
["COPIA PARA LA EMPRESA"]
[]
[]
[]
[]
[]
[]
[]
[]
[]
[]
[]
[null,"En",{"$f":"DATOS!D20","v":"MADRID"},",   a",{"$f":"DATOS!D5","v":"2016-11-14"}]
[]
[null,"La empresa",null,null,null,"El trabajador/a"]
[]
[]
[]
[null,null,null,null,null,{"$f":"DATOS!D17","v":"EULALIO SEBASTIAN CORDERO VALCEITE"}]

{"sheet":"FICHA TRABAJADOR","index":2,"n_rows":124,"n_cols":8,"rows_kept":124,"cut":false,"hidden":false,"merged":[[20,1,20,6],[23,1,23,7],[7,1,7,2],[7,3,7,7],[25,1,60,7],[50,0,68,0],[64,1,64,3],[64,5,64,7],[8,1,8,2],[8,3,8,4],[10,1,10,7],[12,1,13,6],[12,7,13,7],[14,1,14,6],[16,1,16,4],[16,5,16,7],[15,1,15,6],[18,1,18,6],[1,2,1,7],[3,1,3,2],[3,3,3,7],[5,1,5,2],[5,3,5,7],[102,1,103,7],[70,1,70,7],[72,1,72,7],[74,1,76,7],[78,1,79,7],[81,1,83,7],[85,1,86,7],[88,1,89,7],[91,1,92,7],[94,1,95,7],[97,1,97,7],[99,1,100,7],[123,1,123,7],[105,1,106,7],[108,1,109,7],[111,1,112,7],[114,1,115,7],[117,1,118,7],[120,1,121,7]]}
[]
[null,null,"FICHA DE EVALUACIÓN   -   AGENTES FÍSICOS:  RUIDO"]
[]
[null,"Empresa:",null,{"$f":"DATOS!D8","v":"MECANIZADOS EL TUERCAS, S.L."}]
[]
[null,"Centro de trabajo:",null,{"$f":"DATOS!D11","v":"C/ EL MENDRUGO 33 · MADRID"}]
[]
[null,"PUESTO ANALIZADO:",null,{"$f":"DATOS!D14","v":"OPERARIO DE PINTURA"}]
[null,"Fecha de la evaluación:",null,{"$f":"DATOS!D5","v":"2016-11-14"}]
[]
[null,"EVALUACIÓN DE LOS RESULTADOS SEGÚN R.D. 286/2006:"]
[]
[null,"Se superan los valores límite de exposición (Leq,d=87dBA y Lpico=140dBC teniendo en cuenta la atenuación de los protectores auditivos individuales utilizados):",null,null,null,null,null,{"$f":"IF(OR(DATOS!B27>87,DATOS!B33>140),\"SI\",\"NO\")","v":"SI"}]
[]
[null,"Nivel de exposición diario equivalente (dB(A)) con protectores auditivos:",null,null,null,null,null,{"$f":"DATOS!B27","v":90}]
[null,"Nivel de pico (dB(C)) con protectores auditivos:    ",null,null,null,null,null,{"$f":"DATOS!B33","v":100}]
[null,"Equipos de Protección Individual Auditivos utilizados:",null,null,null,{"$f":"DATOS!B36","v":"TAPONES 3M - 1100"}]
[]
[null,"Nivel de exposición diario equivalente (dB(A)):",null,null,null,null,null,{"$f":"DATOS!B25","v":110}]
[]
[null,"Nivel de pico (dB(C)):    ",null,null,null,null,null,{"$f":"DATOS!B31","v":128}]
[]
[]
[null,"Medidas de prevención y protección:"]
[]
[null,{"$f":"IF(H13=\"SI\",DATOS!C42,IF(AND(H19<80,H21<135),DATOS!C106,IF(OR(H19=85,H19>85,H21=137,H21>137),DATOS!C64,IF(OR(AND(H19<85,H19=80,H19>80),OR(H21>135,H21=135,H21<137)),DATOS!C85,\" \"))))","v":"► Si a pesar de las medidas adoptadas se comprobasen exposiciones por encima de los valores límite de exposición, se deberá (R.D. 286/2006; art. 8º, 2):\n\n- tomar inmediatamente medidas para reducir la exposición por debajo de los valores límite de exposición;\n\n- determinar las razones de la sobreexposición;\n\n- corregir las medidas de prevención y protección, a fin de evitar que vuelva a producirse una reincidencia;\n\n- informar a los delegados de prevención de tales circunstancias."}]
[]
[]
[]
[]
[]
[]
[]
[]
[]
[]
[]
[]
[]
[]
[]
[]
[]
[]
[]
[]
[]
[]
[]
[]
["COPIA PARA EL TRABAJADOR"]
[]
[]
[]
[]
[]
[]
[]
[]
[]
[]
[]
[null,"En",{"$f":"DATOS!D20","v":"MADRID"},",   a",{"$f":"DATOS!D5","v":"2016-11-14"}]
[]
[null,"La empresa",null,null,null,"El trabajador/a"]
[]
[]
[]
[null,null,null,null,null,{"$f":"DATOS!D17","v":"EULALIO SEBASTIAN CORDERO VALCEITE"}]
[]
[null,"Instrucciones en el correcto uso de los protectores auditivos:"]
[]
[null,"- Se podrán usar protectores auditivos tipo orejera o tipo tapón de los aportados por la Empresa."]
[]
[null,"- Los tipo orejera son apropiados para exposiciones de corta duracción y situaciones de niveles de ruido altamente variables. Los tipo tapón son indicados para exposiciones prolongadas y niveles de ruido estables."]
[]
[]
[]
[null,"- Es obligatorio el uso de protectores auditivos en todas aquellas zonas, áreas y recintos en los que esté señalizado."]
[]
[]
[null,"- Del mismo modo, es obligatorio el empleo de protectores auditivos durante el manejo de herramientas y equipos de trabajo generadores de elevados niveles de ruido, aún para exposiciones breves."]
[]
[]
[]
[null,"- Los protectores auditivos suministrados por la empresa aportan suficiente atenuación en todos los casos de forma que no se superan los valores límite de exposición."]
[]
[]
[null,"- Los protectores auditivos deberán llevarse mientras dure la exposición al ruido, retirar el protector, incluso durante un corto espacio de tiempo, reduce seriamente la protección."]
[]
[]
[null,"- Es conveniente llevar en todo momento encima unos tapones para disponer fácil y rápidamente de ellos en caso de necesitar protección."]
[]
[]
[null,"- Los tapones auditivos son estrictamente personales, cuando ya no sean útiles se desecharán  depositándolos en los recipientes adecuados."]
[]
[]
[null,"- Los tapones deben ponerse y quitarse con las manos limpias."]
[]
[null,"- Los tapones deben colocarse con la mano del mismo lado del oído y estirando hacia arriba de la oreja con la otra mano para abrir el conducto auditivo."]
[]
[]
[null,"- Los tapones han de introducirse todo lo que se pueda en el conducto auditivo, con suavidad, sin brusquedades y revisando periódicamente su perfecto ajuste."]
[]
[]
[null,"- Los tapones, tanto los de cordón como los de espuma, son reutilizables por varios usos, pueden lavarse con agua y jabón, dejando que se sequen bien y pueden usarse de nuevo."]
[]
[]
[null,"- Cuando los tapones estén quebradizos, agrietados, perforados, endurecidos, deformados o muy sucios deberán ser sustituidos por otros nuevos."]
[]
[]
[null,"- En los tipo orejera es conveniente revisar de vez en cuando el perfecto estado y colocación de la esponjilla aislante."]
[]
[]
[null,"- Deben ajustarse las orejeras perfectamente, de forma que los casquetes cubran en su totalidad el pabellón auricular, teniendo cuidado que no queden agujeros por los que pueda entrar el ruido. "]
[]
[]
[null,"- Se recuerda que el trabajador es responsable del correcto empleo de los equipos de protección, así como de su cuidado y custodia."]
[]
[]
[null,"- Ante cualquier duda que se tenga sobre la utilización de los equipos de protección auditiva consultar con el personal responsable de prevención."]
[]
[]
[null,"- Recuerde que lo más importante es su salud, ¡PROTÉJASE!"]